[Event "*** Titled Tuesday Blitz"]
[Site "Chess.com"]
[Date "2020.10.20"]
[Round "8"]
[White "canary2016"]
[Black "lelya96"]
[Result "1-0"]
[WhiteElo "1957"]
[BlackElo "2173"]
[TimeControl "180+1"]
[EndTime "11:38:53 PDT"]
[Termination "canary2016 won by checkmate"]

1. d4 {[%clk 0:03:00.9]} 1... d5 {[%clk 0:02:09.9]} 2. c4 {[%clk 0:02:59.4]}
2... c6 {[%clk 0:02:10.1]} 3. Nf3 {[%clk 0:02:59.2]} 3... Nf6 {[%clk 0:02:10.2]}
4. g3 {[%clk 0:02:58.4]} 4... e6 {[%clk 0:02:05.3]} 5. Nbd2 {[%clk 0:02:57.1]}
5... Bb4 {[%clk 0:02:04.5]} 6. Qc2 {[%clk 0:02:52.8]} 6... O-O {[%clk
0:02:03.7]} 7. Bg2 {[%clk 0:02:51.8]} 7... b6 {[%clk 0:02:03.3]} 8. O-O {[%clk
0:02:49.4]} 8... Bb7 {[%clk 0:02:03.3]} 9. Rd1 {[%clk 0:02:44.7]} 9... Qc8
{[%clk 0:02:01.1]} 10. a3 {[%clk 0:02:42.9]} 10... Be7 {[%clk 0:01:59.8]} 11. b4
{[%clk 0:02:40.4]} 11... c5 {[%clk 0:01:53.5]} 12. dxc5 {[%clk 0:02:33.8]} 12...
bxc5 {[%clk 0:01:46]} 13. cxd5 {[%clk 0:02:28.4]} 13... exd5 {[%clk 0:01:29]}
14. bxc5 {[%clk 0:02:18.7]} 14... Bxc5 {[%clk 0:01:26.9]} 15. Qb3 {[%clk
0:02:15.4]} 15... Nc6 {[%clk 0:01:19.4]} 16. Bb2 {[%clk 0:02:10.5]} 16... Ng4
{[%clk 0:01:03.6]} 17. e3 {[%clk 0:02:04.2]} 17... Re8 {[%clk 0:01:02.7]} 18.
Rac1 {[%clk 0:01:59.8]} 18... Bb6 {[%clk 0:00:44.3]} 19. Qc3 {[%clk 0:01:50.5]}
19... f6 {[%clk 0:00:31.9]} 20. h3 {[%clk 0:01:37.3]} 20... Nxf2 {[%clk
0:00:31.1]} 21. Rf1 {[%clk 0:01:03.4]} 21... Nxh3+ {[%clk 0:00:22.7]} 22. Kh2
{[%clk 0:00:53]} 22... Rxe3 {[%clk 0:00:18.6]} 23. Bxh3 {[%clk 0:00:39.8]} 23...
Rxc3 {[%clk 0:00:17.6]} 24. Bxc8 {[%clk 0:00:39.3]} 24... Rxc1 {[%clk
0:00:17.7]} 25. Be6+ {[%clk 0:00:38]} 25... Kh8 {[%clk 0:00:16.1]} 26. Rxc1
{[%clk 0:00:37.8]} 26... Rd8 {[%clk 0:00:12.8]} 27. Nb3 {[%clk 0:00:35.9]} 27...
Be3 {[%clk 0:00:12.3]} 28. Re1 {[%clk 0:00:31.8]} 28... d4 {[%clk 0:00:12.3]}
29. Rd1 {[%clk 0:00:22.1]} 29... d3 {[%clk 0:00:11.4]} 30. Bc4 {[%clk
0:00:17.8]} 30... d2 {[%clk 0:00:04.1]} 31. Nfxd2 {[%clk 0:00:16.1]} 31... Ne5
{[%clk 0:00:04.2]} 32. Be2 {[%clk 0:00:14.2]} 32... h6 {[%clk 0:00:02]} 33. Nf1
{[%clk 0:00:12.1]} 33... Rxd1 {[%clk 0:00:02]} 34. Bxd1 {[%clk 0:00:12.5]} 34...
Bb6 {[%clk 0:00:02.7]} 35. Nfd2 {[%clk 0:00:09.5]} 35... Kh7 {[%clk 0:00:02.4]}
36. Bxe5 {[%clk 0:00:09.4]} 36... fxe5 {[%clk 0:00:01.8]} 37. Nc4 {[%clk
0:00:09.7]} 37... g6 {[%clk 0:00:02.4]} 38. Nxe5 {[%clk 0:00:08.5]} 38... Bc7
{[%clk 0:00:02.4]} 39. Nd7 {[%clk 0:00:07.5]} 39... Bd6 {[%clk 0:00:02.3]} 40.
Ndc5 {[%clk 0:00:07.5]} 40... Bc6 {[%clk 0:00:01.8]} 41. Be2 {[%clk 0:00:07]}
41... Bxc5 {[%clk 0:00:02.2]} 42. Nxc5 {[%clk 0:00:06.8]} 42... a5 {[%clk
0:00:03.1]} 43. Bd3 {[%clk 0:00:06.4]} 43... a4 {[%clk 0:00:03.5]} 44. Kg1
{[%clk 0:00:06.2]} 44... Kg7 {[%clk 0:00:04.1]} 45. Kf2 {[%clk 0:00:06.5]} 45...
Kf6 {[%clk 0:00:04.7]} 46. Ke3 {[%clk 0:00:06.9]} 46... Ke5 {[%clk 0:00:05.2]}
47. Bxg6 {[%clk 0:00:07]} 47... Kd5 {[%clk 0:00:05.8]} 48. Nd3 {[%clk
0:00:06.5]} 48... Kc4 {[%clk 0:00:05.9]} 49. Nf2 {[%clk 0:00:03.3]} 49... Kb3
{[%clk 0:00:06.2]} 50. Ne4 {[%clk 0:00:02.7]} 50... Kxa3 {[%clk 0:00:06.6]} 51.
Nc5 {[%clk 0:00:02.9]} 51... Kb4 {[%clk 0:00:06.9]} 52. Nxa4 {[%clk 0:00:01.8]}
52... Kxa4 {[%clk 0:00:07.4]} 53. Kf4 {[%clk 0:00:01.9]} 53... Bd5 {[%clk
0:00:07.7]} 54. Bh5 {[%clk 0:00:02]} 54... Kb5 {[%clk 0:00:07.2]} 55. Kf5 {[%clk
0:00:02.3]} 55... Kc5 {[%clk 0:00:07]} 56. Kg6 {[%clk 0:00:02.7]} 56... Be4+
{[%clk 0:00:07.3]} 57. Kxh6 {[%clk 0:00:03.6]} 57... Kd4 {[%clk 0:00:07.5]} 58.
g4 {[%clk 0:00:04.5]} 58... Ke5 {[%clk 0:00:07.7]} 59. g5 {[%clk 0:00:05.4]}
59... Bf5 {[%clk 0:00:07.4]} 60. Bg6 {[%clk 0:00:06.3]} 60... Be6 {[%clk
0:00:07.2]} 61. Bc2 {[%clk 0:00:05.8]} 61... Bg8 {[%clk 0:00:07.5]} 62. g6
{[%clk 0:00:06]} 62... Kf6 {[%clk 0:00:07.4]} 63. g7 {[%clk 0:00:06.4]} 63...
Bf7 {[%clk 0:00:07.8]} 64. Bh7 {[%clk 0:00:06.1]} 64... Be6 {[%clk 0:00:07.6]}
65. Bg6 {[%clk 0:00:06.4]} 65... Bg8 {[%clk 0:00:07.6]} 66. Bd3 {[%clk
0:00:06.1]} 66... Be6 {[%clk 0:00:07.8]} 67. Kh7 {[%clk 0:00:06.4]} 67... Bf7
{[%clk 0:00:07.2]} 68. Kh8 {[%clk 0:00:06.8]} 68... Be6 {[%clk 0:00:07.1]} 69.
Bh7 {[%clk 0:00:06.9]} 69... Bd5 {[%clk 0:00:07.1]} 70. Bg8 {[%clk 0:00:07.2]}
70... Be4 {[%clk 0:00:06.7]} 71. Bb3 {[%clk 0:00:07]} 71... Bh7 {[%clk
0:00:01.5]} 72. Kxh7 {[%clk 0:00:06.1]} 72... Ke5 {[%clk 0:00:02.1]} 73. g8=Q
{[%clk 0:00:05.2]} 73... Kd4 {[%clk 0:00:03]} 74. Qe8 {[%clk 0:00:02.9]} 74...
Kc3 {[%clk 0:00:03.2]} 75. Qd7 {[%clk 0:00:03.1]} 75... Kxb3 {[%clk 0:00:03.3]}
76. Kg6 {[%clk 0:00:03.5]} 76... Kc4 {[%clk 0:00:04.2]} 77. Kf5 {[%clk
0:00:03.7]} 77... Kc5 {[%clk 0:00:04.6]} 78. Ke5 {[%clk 0:00:04]} 78... Kc4
{[%clk 0:00:05]} 79. Qd4+ {[%clk 0:00:04.1]} 79... Kb3 {[%clk 0:00:04.7]} 80.
Qc5 {[%clk 0:00:04.4]} 80... Kb2 {[%clk 0:00:04.8]} 81. Ke4 {[%clk 0:00:04.8]}
81... Kb3 {[%clk 0:00:05.3]} 82. Kd3 {[%clk 0:00:05.2]} 82... Kb2 {[%clk
0:00:05.9]} 83. Qc3+ {[%clk 0:00:05.2]} 83... Ka2 {[%clk 0:00:06.8]} 84. Qb4
{[%clk 0:00:05.2]} 84... Ka1 {[%clk 0:00:07.2]} 85. Kc2 {[%clk 0:00:05.3]} 85...
Ka2 {[%clk 0:00:07.6]} 86. Qb2# {[%clk 0:00:05.4]} 1-0

[Event "*** Titled Tuesday Blitz"]
[Site "Chess.com"]
[Date "2020.10.20"]
[Round "8"]
[White "RamyresCoelho"]
[Black "TC2304"]
[Result "0-1"]
[WhiteElo "2057"]
[BlackElo "2259"]
[TimeControl "180+1"]
[EndTime "11:39:06 PDT"]
[Termination "TC2304 won by checkmate"]

1. e4 {[%clk 0:02:59.9]} 1... c5 {[%clk 0:02:59.8]} 2. Nf3 {[%clk 0:02:59.7]}
2... d6 {[%clk 0:03:00.1]} 3. d4 {[%clk 0:03:00.6]} 3... cxd4 {[%clk 0:03:01]}
4. Nxd4 {[%clk 0:03:01.4]} 4... Nf6 {[%clk 0:03:01.5]} 5. Nc3 {[%clk 0:02:59.8]}
5... a6 {[%clk 0:03:00.8]} 6. f3 {[%clk 0:02:59.6]} 6... e5 {[%clk 0:02:55.8]}
7. Nb3 {[%clk 0:02:59]} 7... Be6 {[%clk 0:02:56.3]} 8. Be3 {[%clk 0:02:59.2]}
8... Nbd7 {[%clk 0:02:55.2]} 9. Qd2 {[%clk 0:02:59.4]} 9... h5 {[%clk
0:02:55.6]} 10. O-O-O {[%clk 0:02:59.1]} 10... Be7 {[%clk 0:02:56.3]} 11. Kb1
{[%clk 0:02:57.2]} 11... Rc8 {[%clk 0:02:53]} 12. Nd5 {[%clk 0:02:53.8]} 12...
Nxd5 {[%clk 0:02:53.1]} 13. exd5 {[%clk 0:02:54.7]} 13... Bf5 {[%clk 0:02:53.8]}
14. Bd3 {[%clk 0:02:53.9]} 14... Bxd3 {[%clk 0:02:54.4]} 15. Qxd3 {[%clk
0:02:54.8]} 15... Bg5 {[%clk 0:02:55]} 16. Bxg5 {[%clk 0:02:50.8]} 16... Qxg5
{[%clk 0:02:55.9]} 17. g3 {[%clk 0:02:49.1]} 17... O-O {[%clk 0:02:51.5]} 18.
Rhg1 {[%clk 0:02:40.4]} 18... g6 {[%clk 0:02:16]} 19. h4 {[%clk 0:02:40]} 19...
Qf6 {[%clk 0:02:12.2]} 20. Nd2 {[%clk 0:02:35.1]} 20... Nc5 {[%clk 0:02:10.2]}
21. Qe2 {[%clk 0:02:33.9]} 21... b5 {[%clk 0:01:47.7]} 22. Ne4 {[%clk 0:02:33]}
22... Nxe4 {[%clk 0:01:45.2]} 23. fxe4 {[%clk 0:02:33.9]} 23... Kh7 {[%clk
0:01:33.7]} 24. Rdf1 {[%clk 0:02:32.9]} 24... Qg7 {[%clk 0:01:26.3]} 25. g4
{[%clk 0:02:33.1]} 25... hxg4 {[%clk 0:01:25.3]} 26. Rxg4 {[%clk 0:02:30.8]}
26... Qh6 {[%clk 0:01:15.3]} 27. h5 {[%clk 0:02:12.3]} 27... g5 {[%clk
0:00:35.9]} 28. Rf5 {[%clk 0:02:03]} 28... f6 {[%clk 0:00:35.3]} 29. Qh2 {[%clk
0:01:59]} 29... Rc7 {[%clk 0:00:28.5]} 30. Rf1 {[%clk 0:01:44.7]} 30... Kg7
{[%clk 0:00:23.7]} 31. Rg3 {[%clk 0:01:37.5]} 31... b4 {[%clk 0:00:21]} 32. Rh3
{[%clk 0:01:34.4]} 32... Rfc8 {[%clk 0:00:20.6]} 33. Rf2 {[%clk 0:01:31.1]}
33... Kf7 {[%clk 0:00:17.3]} 34. Qg3 {[%clk 0:01:28.2]} 34... Ke7 {[%clk
0:00:16.5]} 35. Qd3 {[%clk 0:01:28.1]} 35... a5 {[%clk 0:00:16.6]} 36. Rhf3
{[%clk 0:01:22.8]} 36... Qxh5 {[%clk 0:00:14]} 37. Rxf6 {[%clk 0:01:19.3]} 37...
Rh8 {[%clk 0:00:07.7]} 38. Re6+ {[%clk 0:01:16.8]} 38... Kd7 {[%clk 0:00:07.1]}
39. Qb5+ {[%clk 0:01:16.4]} 39... Kc8 {[%clk 0:00:06.9]} 40. Qa6+ {[%clk
0:01:15.1]} 40... Kb8 {[%clk 0:00:06.4]} 41. Qb6+ {[%clk 0:01:13.7]} 41... Ka8
{[%clk 0:00:03.8]} 42. Rf1 {[%clk 0:00:53.1]} 42... Qe2 {[%clk 0:00:03.4]} 43.
Rc1 {[%clk 0:00:43.6]} 43... Rhc8 {[%clk 0:00:03.7]} 44. Qxa5+ {[%clk
0:00:39.2]} 44... Kb8 {[%clk 0:00:03.2]} 45. Qxb4+ {[%clk 0:00:39.6]} 45... Ka8
{[%clk 0:00:03.5]} 46. Rxd6 {[%clk 0:00:38]} 46... Rxc2 {[%clk 0:00:02.7]} 47.
Qa4+ {[%clk 0:00:35.5]} 47... Kb7 {[%clk 0:00:03.2]} 48. Qxc2 {[%clk 0:00:34.1]}
48... Rxc2 {[%clk 0:00:02.4]} 49. Rxc2 {[%clk 0:00:35]} 49... Qd1+ {[%clk
0:00:03]} 50. Rc1 {[%clk 0:00:35.2]} 50... Qd3+ {[%clk 0:00:03.3]} 51. Ka1
{[%clk 0:00:35]} 51... Qd2 {[%clk 0:00:03.4]} 52. Rdc6 {[%clk 0:00:34]} 52... g4
{[%clk 0:00:03.7]} 53. d6 {[%clk 0:00:33.3]} 53... g3 {[%clk 0:00:02.7]} 54.
Rc7+ {[%clk 0:00:34]} 54... Kb6 {[%clk 0:00:02.3]} 55. d7 {[%clk 0:00:33.8]}
55... g2 {[%clk 0:00:02.6]} 56. R7c6+ {[%clk 0:00:33]} 56... Kb7 {[%clk
0:00:02.5]} 57. Rc7+ {[%clk 0:00:29.8]} 57... Kb6 {[%clk 0:00:02.7]} 58. R1c6+
{[%clk 0:00:29]} 58... Kb5 {[%clk 0:00:03]} 59. Rc5+ {[%clk 0:00:27]} 59... Kb6
{[%clk 0:00:02.9]} 60. R7c6+ {[%clk 0:00:26.4]} 60... Kb7 {[%clk 0:00:03.2]} 61.
Rc7+ {[%clk 0:00:22.4]} 61... Kb6 {[%clk 0:00:03.3]} 62. Rc1 {[%clk 0:00:10.2]}
62... g1=Q {[%clk 0:00:02.4]} 63. Rxg1 {[%clk 0:00:09.6]} 63... Kxc7 {[%clk
0:00:01.9]} 64. d8=Q+ {[%clk 0:00:04.6]} 64... Kxd8 {[%clk 0:00:01.9]} 65. a3
{[%clk 0:00:05.5]} 65... Qd4 {[%clk 0:00:02]} 66. Rb1 {[%clk 0:00:06.4]} 66...
Qxe4 {[%clk 0:00:02.3]} 67. Rd1+ {[%clk 0:00:07.3]} 67... Ke7 {[%clk 0:00:02.9]}
68. Rc1 {[%clk 0:00:07.5]} 68... Kf6 {[%clk 0:00:03.2]} 69. Rc3 {[%clk
0:00:08.4]} 69... Qd4 {[%clk 0:00:03.3]} 70. Ka2 {[%clk 0:00:09.3]} 70... e4
{[%clk 0:00:03.8]} 71. Kb3 {[%clk 0:00:10.2]} 71... e3 {[%clk 0:00:04.3]} 72.
Rc4 {[%clk 0:00:11.1]} 72... Qd3+ {[%clk 0:00:04.5]} 73. Rc3 {[%clk 0:00:11.2]}
73... Qd1+ {[%clk 0:00:05]} 74. Kb4 {[%clk 0:00:11.5]} 74... e2 {[%clk
0:00:05.9]} 75. Rc4 {[%clk 0:00:11.5]} 75... e1=Q+ {[%clk 0:00:05.8]} 76. Kb5
{[%clk 0:00:11.4]} 76... Qe8+ {[%clk 0:00:05.6]} 77. Rc6+ {[%clk 0:00:11.1]}
77... Kf5 {[%clk 0:00:04.6]} 78. Kb6 {[%clk 0:00:10.7]} 78... Qd4+ {[%clk
0:00:04.6]} 79. Rc5+ {[%clk 0:00:11.6]} 79... Kf4 {[%clk 0:00:04]} 80. b4 {[%clk
0:00:10.7]} 80... Qe6+ {[%clk 0:00:04.1]} 81. Kb5 {[%clk 0:00:10.8]} 81... Qd3+
{[%clk 0:00:03.9]} 82. Ka4 {[%clk 0:00:10.5]} 82... Qea6+ {[%clk 0:00:04.2]} 83.
Ra5 {[%clk 0:00:10.6]} 83... Qd7+ {[%clk 0:00:04.6]} 84. Kb3 {[%clk 0:00:10.7]}
84... Qad3+ {[%clk 0:00:05.3]} 85. Kb2 {[%clk 0:00:10.4]} 85... Q7d4+ {[%clk
0:00:05.7]} 86. Ka2 {[%clk 0:00:10.1]} 86... Q4c4+ {[%clk 0:00:06.2]} 87. Kb2
{[%clk 0:00:10.3]} 87... Qcc2+ {[%clk 0:00:06.5]} 88. Ka1 {[%clk 0:00:10.2]}
88... Qdd1# {[%clk 0:00:07.4]} 0-1

[Event "*** Titled Tuesday Blitz"]
[Site "Chess.com"]
[Date "2020.10.20"]
[Round "8"]
[White "Manukyan_Artak"]
[Black "Pavalamalli"]
[Result "1-0"]
[WhiteElo "2419"]
[BlackElo "2290"]
[TimeControl "180+1"]
[EndTime "11:39:51 PDT"]
[Termination "Manukyan_Artak won by checkmate"]

1. e4 {[%clk 0:02:54.3]} 1... c5 {[%clk 0:02:58.9]} 2. Nf3 {[%clk 0:02:53.8]}
2... a6 {[%clk 0:02:59]} 3. c3 {[%clk 0:02:53.8]} 3... d5 {[%clk 0:02:58.4]} 4.
exd5 {[%clk 0:02:51]} 4... Qxd5 {[%clk 0:02:59.1]} 5. d4 {[%clk 0:02:51.9]} 5...
cxd4 {[%clk 0:02:59.4]} 6. cxd4 {[%clk 0:02:51.6]} 6... Nf6 {[%clk 0:02:57.9]}
7. Nc3 {[%clk 0:02:51.2]} 7... Qd8 {[%clk 0:02:57.8]} 8. Bg5 {[%clk 0:02:47.1]}
8... Bg4 {[%clk 0:02:56.2]} 9. h3 {[%clk 0:02:42.2]} 9... Bxf3 {[%clk
0:02:53.8]} 10. Qxf3 {[%clk 0:02:42.1]} 10... Qb6 {[%clk 0:02:52.1]} 11. Bxf6
{[%clk 0:02:20.8]} 11... exf6 {[%clk 0:02:47.8]} 12. Qe4+ {[%clk 0:01:59.6]}
12... Qe6 {[%clk 0:02:45.2]} 13. Bd3 {[%clk 0:01:37.1]} 13... Nc6 {[%clk
0:02:40.2]} 14. d5 {[%clk 0:01:36.9]} 14... Qxe4+ {[%clk 0:02:37.2]} 15. Bxe4
{[%clk 0:01:35.4]} 15... Ne5 {[%clk 0:02:31.4]} 16. O-O-O {[%clk 0:01:32.9]}
16... Bd6 {[%clk 0:02:28.8]} 17. Kb1 {[%clk 0:01:27.3]} 17... O-O {[%clk
0:02:27.9]} 18. g4 {[%clk 0:01:16]} 18... Rac8 {[%clk 0:02:25.4]} 19. Bg2 {[%clk
0:01:11.3]} 19... Nc4 {[%clk 0:02:24]} 20. Ne4 {[%clk 0:01:09.2]} 20... Be5
{[%clk 0:02:22.2]} 21. Nc3 {[%clk 0:01:00.5]} 21... Nxb2 {[%clk 0:02:14]} 22.
Kxb2 {[%clk 0:01:00.2]} 22... Rxc3 {[%clk 0:02:12.9]} 23. Kb1 {[%clk 0:00:57.8]}
23... Rc5 {[%clk 0:02:06.8]} 24. Rd3 {[%clk 0:00:45.5]} 24... Rd8 {[%clk
0:02:02.4]} 25. Rhd1 {[%clk 0:00:42.4]} 25... Rd6 {[%clk 0:02:02.2]} 26. Rb3
{[%clk 0:00:38.5]} 26... b5 {[%clk 0:02:01.3]} 27. Rc1 {[%clk 0:00:38.7]} 27...
Rxc1+ {[%clk 0:01:52.3]} 28. Kxc1 {[%clk 0:00:39.6]} 28... Kf8 {[%clk
0:01:49.8]} 29. Rb4 {[%clk 0:00:33.7]} 29... Ke7 {[%clk 0:01:42.3]} 30. a4
{[%clk 0:00:28.2]} 30... Bc3 {[%clk 0:01:40.2]} 31. Re4+ {[%clk 0:00:27.2]}
31... Kd7 {[%clk 0:01:40]} 32. axb5 {[%clk 0:00:27.1]} 32... axb5 {[%clk
0:01:40.2]} 33. Kc2 {[%clk 0:00:27.5]} 33... b4 {[%clk 0:01:39.9]} 34. Rc4
{[%clk 0:00:20.1]} 34... Ra6 {[%clk 0:01:36.8]} 35. Kd3 {[%clk 0:00:15.3]} 35...
Ra2 {[%clk 0:01:34.4]} 36. Be4 {[%clk 0:00:14.6]} 36... Rxf2 {[%clk 0:01:31.9]}
37. Rc6 {[%clk 0:00:13.5]} 37... Rh2 {[%clk 0:01:24]} 38. Bf5+ {[%clk
0:00:13.1]} 38... Kd8 {[%clk 0:01:18.2]} 39. d6 {[%clk 0:00:12.5]} 39... Rd2+
{[%clk 0:01:11.8]} 40. Kc4 {[%clk 0:00:10.8]} 40... Rd4+ {[%clk 0:01:08.7]} 41.
Kb3 {[%clk 0:00:10.6]} 41... Rxd6 {[%clk 0:01:08.7]} 42. Rxd6+ {[%clk
0:00:10.7]} 42... Ke8 {[%clk 0:01:06.3]} 43. Rd3 {[%clk 0:00:08.9]} 43... g6
{[%clk 0:01:06.3]} 44. Bd7+ {[%clk 0:00:08.9]} 44... Ke7 {[%clk 0:01:06.3]} 45.
Bb5 {[%clk 0:00:09.8]} 45... Ke6 {[%clk 0:01:05.9]} 46. Bc4+ {[%clk 0:00:09.6]}
46... Ke7 {[%clk 0:01:06.1]} 47. Re3+ {[%clk 0:00:09.2]} 47... Kf8 {[%clk
0:01:06.4]} 48. Bd5 {[%clk 0:00:08.4]} 48... h6 {[%clk 0:01:03.6]} 49. Kc4
{[%clk 0:00:07.8]} 49... h5 {[%clk 0:00:42]} 50. gxh5 {[%clk 0:00:07.2]} 50...
gxh5 {[%clk 0:00:42.1]} 51. Rf3 {[%clk 0:00:07.1]} 51... Kg7 {[%clk 0:00:41.7]}
52. Be4 {[%clk 0:00:07.3]} 52... Kh6 {[%clk 0:00:36.8]} 53. Rf5 {[%clk
0:00:07.4]} 53... h4 {[%clk 0:00:35.8]} 54. Bf3 {[%clk 0:00:06.4]} 54... Kg6
{[%clk 0:00:35.9]} 55. Bg4 {[%clk 0:00:06.7]} 55... Be1 {[%clk 0:00:34]} 56. Rb5
{[%clk 0:00:06.6]} 56... Bc3 {[%clk 0:00:33.5]} 57. Bh5+ {[%clk 0:00:06.6]}
57... Kh6 {[%clk 0:00:32.1]} 58. Bxf7 {[%clk 0:00:05.4]} 58... Kg7 {[%clk
0:00:30.8]} 59. Bh5 {[%clk 0:00:05.5]} 59... Kh6 {[%clk 0:00:30.8]} 60. Bg4
{[%clk 0:00:06]} 60... Kg6 {[%clk 0:00:30.6]} 61. Kd3 {[%clk 0:00:05.7]} 61...
Be1 {[%clk 0:00:29]} 62. Ke4 {[%clk 0:00:05.7]} 62... Bc3 {[%clk 0:00:29]} 63.
Bf5+ {[%clk 0:00:05.9]} 63... Kg5 {[%clk 0:00:28.7]} 64. Be6+ {[%clk 0:00:06]}
64... Kg6 {[%clk 0:00:28.8]} 65. Rb8 {[%clk 0:00:06.3]} 65... Kg7 {[%clk
0:00:28.6]} 66. Kf5 {[%clk 0:00:06.2]} 66... Bd2 {[%clk 0:00:25.8]} 67. Rg8+
{[%clk 0:00:05.8]} 67... Kh7 {[%clk 0:00:26.1]} 68. Kxf6 {[%clk 0:00:04.3]}
68... Bc3+ {[%clk 0:00:26.6]} 69. Kf5 {[%clk 0:00:04.4]} 69... Kh6 {[%clk
0:00:26.1]} 70. Rc8 {[%clk 0:00:04.8]} 70... Be1 {[%clk 0:00:25.2]} 71. Rf8
{[%clk 0:00:04.1]} 71... Kh7 {[%clk 0:00:25.1]} 72. Rf7+ {[%clk 0:00:04.4]}
72... Kh6 {[%clk 0:00:25.5]} 73. Rb7 {[%clk 0:00:05.3]} 73... Bc3 {[%clk
0:00:24.3]} 74. Kg4 {[%clk 0:00:06.2]} 74... Be1 {[%clk 0:00:23.9]} 75. Rb5
{[%clk 0:00:05.5]} 75... Kg6 {[%clk 0:00:23.9]} 76. Bb3 {[%clk 0:00:06.4]} 76...
Kf6 {[%clk 0:00:24.1]} 77. Rh5 {[%clk 0:00:06.4]} 77... Kg7 {[%clk 0:00:22.5]}
78. Rb5 {[%clk 0:00:06.7]} 78... Kf6 {[%clk 0:00:22.9]} 79. Rb6+ {[%clk
0:00:07.5]} 79... Ke5 {[%clk 0:00:23]} 80. Kf3 {[%clk 0:00:08]} 80... Bc3 {[%clk
0:00:20.7]} 81. Ke2 {[%clk 0:00:08.1]} 81... Kf4 {[%clk 0:00:20.4]} 82. Kd3
{[%clk 0:00:07.8]} 82... Kg3 {[%clk 0:00:20.5]} 83. Be6 {[%clk 0:00:07.8]} 83...
Be1 {[%clk 0:00:19.6]} 84. Bg4 {[%clk 0:00:08.3]} 84... Bc3 {[%clk 0:00:19.7]}
85. Rb5 {[%clk 0:00:08.5]} 85... Kf4 {[%clk 0:00:19.9]} 86. Kc4 {[%clk
0:00:09.4]} 86... Kg3 {[%clk 0:00:20.3]} 87. Kb3 {[%clk 0:00:10.3]} 87... Kg2
{[%clk 0:00:20.2]} 88. Rf5 {[%clk 0:00:11.2]} 88... Kg3 {[%clk 0:00:20.6]} 89.
Rf3+ {[%clk 0:00:12.1]} 89... Kg2 {[%clk 0:00:20.7]} 90. Rd3 {[%clk 0:00:12.2]}
90... Kf2 {[%clk 0:00:20.6]} 91. Kc4 {[%clk 0:00:12.4]} 91... Kg2 {[%clk
0:00:20.5]} 92. Kd5 {[%clk 0:00:12.6]} 92... Be1 {[%clk 0:00:20.7]} 93. Ke4
{[%clk 0:00:13.5]} 93... Bc3 {[%clk 0:00:20.7]} 94. Be6 {[%clk 0:00:11.7]} 94...
Be1 {[%clk 0:00:20.4]} 95. Bd5 {[%clk 0:00:12.2]} 95... Bc3 {[%clk 0:00:19.4]}
96. Kf4+ {[%clk 0:00:12.2]} 96... Kh2 {[%clk 0:00:19.8]} 97. Kg4 {[%clk
0:00:12.3]} 97... Be1 {[%clk 0:00:20.2]} 98. Re3 {[%clk 0:00:12]} 98... Bg3
{[%clk 0:00:19.6]} 99. Rb3 {[%clk 0:00:12]} 99... Be1 {[%clk 0:00:19.8]} 100.
Rb2+ {[%clk 0:00:12.4]} 100... Kg1 {[%clk 0:00:19.3]} 101. Kf3 {[%clk
0:00:12.7]} 101... Bg3 {[%clk 0:00:17.5]} 102. Rg2+ {[%clk 0:00:12.4]} 102...
Kf1 {[%clk 0:00:17.3]} 103. Rb2 {[%clk 0:00:12.1]} 103... Kg1 {[%clk 0:00:17.3]}
104. Rxb4 {[%clk 0:00:11.9]} 104... Kh2 {[%clk 0:00:17.4]} 105. Rb2+ {[%clk
0:00:11.9]} 105... Kxh3 {[%clk 0:00:16.7]} 106. Be6# {[%clk 0:00:12.1]} 1-0